bitfinex-derivatives/quotes_BTCF0:USTF0_20250309
["timestamp","ask_amount","ask_price","bid_price","bid_amount"]
[1741510942499,0.00014533,85828.0,85827.0,0.18042179]
[1741510942804,0.13914744,85832.0,85827.0,0.18042179]
[1741510942805,0.0321,85830.0,85827.0,0.18042179]
[1741510943009,0.0321,85830.0,85829.0,0.069919]
[1741510944202,0.0321,85830.0,85829.0,0.069999]
[1741510947310,0.0321,85830.0,85829.0,0.430799]
[1741510947898,0.0321,85830.0,85829.0,0.491299]
[1741510953518,0.0637,85830.0,85829.0,0.491299]
[1741510954017,0.0321,85830.0,85829.0,0.491299]
[1741510956316,0.0321,85830.0,85829.0,0.70113851]
[1741510958013,0.0321,85830.0,85829.0,0.63121951]
[1741510958223,0.1020182,85830.0,85829.0,0.57071951]
[1741510958626,0.11365295,85830.0,85829.0,0.57071951]
[1741510958814,0.11365295,85830.0,85829.0,0.57063951]
[1741510959424,0.11365295,85830.0,85829.0,0.57071951]
[1741510960022,0.11365295,85830.0,85829.0,0.36088]
[1741510960418,0.11365295,85830.0,85829.0,0.430799]
[1741510961223,0.11365295,85830.0,85829.0,0.430719]
[1741510962423,0.11365295,85830.0,85829.0,0.430799]
[1741510963728,0.11365295,85830.0,85829.0,0.36088]
[1741510963921,0.11365295,85830.0,85829.0,8e-05]
[1741510964225,0.11365295,85830.0,85826.0,0.1398423]
[1741510964423,0.0699206,85827.0,85826.0,0.0699209]
[1741510964923,0.0699214,85826.0,85825.0,0.98993469]
[1741510965124,0.1640214,85826.0,85825.0,0.98917469]
[1741510965525,0.1640214,85826.0,85825.0,1.05909689]
[1741510965919,0.1640214,85826.0,85825.0,1.05913689]
[1741510966127,0.1630214,85826.0,85825.0,1.05913689]
[1741510966329,0.1630214,85826.0,85825.0,1.05921689]
[1741510968113,0.1630214,85826.0,85825.0,1.06021689]
[1741510975028,0.1630214,85826.0,85825.0,0.99029469]
[1741510975223,0.2414614,85826.0,85825.0,0.99029469]
[1741510975618,0.2414614,85826.0,85825.0,1.06021689]
[1741510979333,0.2414614,85826.0,85825.0,1.06009689]
[1741510979528,0.2414614,85826.0,85825.0,0.99017469]
[1741510981346,0.2414614,85826.0,85825.0,0.99025469]
[1741510981545,0.3914614,85826.0,85825.0,0.67983088]
[1741510981750,0.7522614,85826.0,85825.0,0.60900809]
[1741510981946,0.7522614,85826.0,85825.0,0.60100809]
[1741510982143,0.76097439,85826.0,85825.0,0.60200809]
[1741510982338,0.76097439,85826.0,85825.0,0.60192809]
[1741510982650,0.76097439,85826.0,85825.0,0.59080809]
[1741510983148,0.76697439,85826.0,85825.0,0.43565464]
[1741510983345,0.76697439,85826.0,85825.0,0.34684274]
[1741510983549,0.76697439,85826.0,85825.0,0.07171742]
[1741510983850,0.76697439,85826.0,85825.0,2e-08]
[1741510984548,0.69805299,85826.0,85814.0,0.39154002]
[1741510984745,0.4307304,85815.0,85814.0,0.08111621]
[1741510984941,0.5092104,85815.0,85814.0,0.08111621]
[1741510985149,0.6592104,85815.0,85814.0,0.08111621]
[1741510985539,0.7219104,85815.0,85814.0,0.08111621]
[1741510986346,1.0827104,85815.0,85814.0,0.08119621]
[1741510986638,0.3611104,85815.0,85814.0,0.08119621]
[1741510986840,1.0827104,85815.0,85814.0,0.08119621]
[1741510989548,1.0847104,85815.0,85814.0,0.08119621]
[1741510991146,1.0847104,85815.0,85814.0,0.04096621]
[1741510991443,0.0699402,85803.0,85802.0,1.0]
[1741510991645,0.5089802,85803.0,85802.0,1.0]
[1741510992356,0.5718802,85803.0,85802.0,1.0]
[1741510993242,0.5718802,85803.0,85802.0,1.069941]
[1741510993549,0.5718802,85803.0,85802.0,1.071941]
[1741510993941,0.5718802,85803.0,85802.0,1.002]
[1741510994151,0.5718802,85803.0,85802.0,1.0662]
[1741510994742,0.58366108,85803.0,85802.0,1.0662]
[1741510996450,0.58366108,85803.0,85802.0,1.136141]
[1741510998446,0.58366108,85803.0,85802.0,1.0662]
[1741510999144,0.58366108,85803.0,85802.0,1.0352]
[1741510999541,0.58366108,85803.0,85802.0,1.002]
[1741510999846,0.50542108,85803.0,85802.0,1.002]
[1741511000048,0.58342108,85803.0,85802.0,1.002]
[1741511002243,0.58342108,85803.0,85802.0,1.00208]
[1741511003948,0.73342108,85803.0,85802.0,0.69165619]
[1741511004346,0.73342108,85803.0,85802.0,0.69157619]
[1741511005342,0.73342108,85803.0,85802.0,0.69165619]
[1741511006357,0.73342108,85803.0,85802.0,0.66435112]
[1741511007244,0.73342108,85803.0,85802.0,0.66443112]
[1741511007953,0.73342108,85803.0,85802.0,0.35400731]
[1741511008454,0.73342108,85803.0,85802.0,0.29450731]
[1741511009054,0.74042108,85803.0,85802.0,0.29250731]
[1741511010647,0.74042108,85803.0,85802.0,0.01698075]
[1741511010848,0.0699434,85799.0,85798.0,0.63685547]
[1741511011040,0.4307434,85799.0,85798.0,0.59123547]
[1741511011247,0.0699565,85783.0,85782.0,0.0325]
[1741511011559,0.0699565,85783.0,85764.0,0.20983951]
[1741511011560,0.0699687,85768.0,85764.0,0.20983951]
[1741511011747,0.1478887,85768.0,85765.0,0.031]
[1741511012453,0.0699703,85766.0,85765.0,0.031]
[1741511012649,0.07792,85768.0,85765.0,0.1009712]
[1741511012850,0.1478895,85768.0,85767.0,0.0699695]
[1741511013153,0.08954997,85768.0,85767.0,0.0719695]
[1741511013353,0.15951867,85768.0,85767.0,0.0719695]
[1741511013855,0.1478887,85768.0,85767.0,0.0719695]
[1741511014247,0.1478887,85768.0,85767.0,0.0720495]
[1741511014648,0.1478887,85768.0,85767.0,0.1026495]
[1741511015252,0.1478887,85768.0,85767.0,0.1016495]
[1741511016247,0.1478887,85768.0,85767.0,0.0916495]
[1741511018058,0.1478487,85768.0,85767.0,0.0916495]
[1741511019648,0.1787487,85768.0,85767.0,0.0916495]
[1741511020954,0.1478487,85768.0,85767.0,0.0916495]
[1741511021256,0.1478487,85768.0,85767.0,0.0916895]
[1741511022351,0.1478487,85768.0,85767.0,0.0917695]
[1741511023160,0.00060001,85774.0,85773.0,0.0699646]
[1741511023358,0.17159154,85782.0,85778.0,0.0349802]
[1741511023554,0.17159154,85782.0,85780.0,0.0699589]
[1741511023555,0.1477185,85781.0,85780.0,0.0699589]
[1741511024256,0.0699585,85781.0,85780.0,0.0699589]
[1741511024457,0.1477185,85781.0,85780.0,0.0699589]
[1741511025259,0.1476785,85781.0,85780.0,0.0699989]
[1741511025662,0.0699585,85781.0,85780.0,0.0699989]
[1741511025855,0.1476785,85781.0,85780.0,0.0699989]
[1741511026356,0.1476785,85781.0,85780.0,0.0700789]
[1741511027561,0.0699585,85781.0,85780.0,0.0700789]
[1741511027757,0.2119785,85781.0,85780.0,0.0700789]
[1741511028463,0.2402585,85783.0,85782.0,0.0699573]
[1741511028658,0.3179785,85783.0,85782.0,0.0699573]
[1741511029157,0.0017494,85788.0,85787.0,0.0699532]
[1741511029362,0.0794294,85788.0,85787.0,0.0699532]
[1741511030262,0.0794294,85788.0,85787.0,0.0699932]
[1741511031352,0.0793494,85788.0,85787.0,0.0700732]
[1741511031556,0.0017494,85788.0,85787.0,0.4308732]
[1741511031960,0.13882644,85795.0,85790.0,0.0699508]
[1741511032156,0.21658644,85795.0,85790.0,0.4351508]
[1741511032356,0.21658644,85795.0,85790.0,0.5851508]
[1741511032659,0.13882644,85795.0,85794.0,0.0699475]
[1741511032860,0.13882644,85795.0,85794.0,0.5807475]
[1741511033165,0.03902644,85795.0,85794.0,0.5807475]
[1741511033556,0.03902644,85795.0,85794.0,0.59721594]
[1741511034166,0.03902644,85795.0,85794.0,0.5807475]
[1741511034366,0.03902644,85795.0,85794.0,0.59721581]
[1741511034567,4e-08,85795.0,85794.0,0.59721581]
[1741511034763,0.0001748,85803.0,85802.0,0.069941]
[1741511034962,0.0001748,85803.0,85802.0,0.81240931]
[1741511035263,0.0001748,85803.0,85802.0,0.96244931]
[1741511036271,0.0001748,85803.0,85802.0,0.97972931]
[1741511036460,0.0001748,85803.0,85802.0,0.99142571]
[1741511037361,0.070115,85803.0,85802.0,0.82972931]
[1741511037566,0.00058307,85803.0,85802.0,0.813261]
[1741511038061,0.03248307,85803.0,85802.0,0.813261]
[1741511038261,0.10242327,85803.0,85802.0,0.813141]
[1741511038462,0.03248307,85803.0,85802.0,0.813141]
[1741511038862,0.00058307,85803.0,85802.0,0.813141]
[1741511039266,0.0776,85808.0,85807.0,0.0699369]
[1741511039665,0.0349669,85811.0,85807.0,0.38179072]
[1741511039871,0.1329349,85810.0,85809.0,0.4307345]
[1741511040171,0.1329349,85810.0,85809.0,0.44732522]
[1741511040365,0.1658349,85810.0,85809.0,0.44740522]
[1741511040561,0.1658349,85810.0,85809.0,0.08660522]
[1741511040760,0.1658349,85810.0,85809.0,0.0872145]
[1741511041157,0.1658349,85810.0,85809.0,0.10380623]
[1741511041361,0.1658349,85810.0,85809.0,0.0872145]
[1741511041966,0.1658349,85810.0,85809.0,0.0700145]
[1741511042365,0.0959,85810.0,85809.0,0.1002145]
[1741511042572,0.0959,85810.0,85809.0,0.1174145]
[1741511045571,0.0959,85810.0,85809.0,0.4826145]
[1741511045764,0.0959,85810.0,85809.0,0.8434145]
[1741511045965,0.0959,85810.0,85809.0,0.86002342]
[1741511046467,0.0959,85810.0,85809.0,0.86006348]
[1741511047269,0.0959,85810.0,85809.0,0.86014348]
[1741511049568,0.0959,85810.0,85809.0,0.8435345]
[1741511049768,0.0959,85810.0,85809.0,0.81270348]
[1741511050172,0.0959,85810.0,85809.0,0.84520348]
[1741511050569,0.0959,85810.0,85809.0,0.48440348]
[1741511051478,0.09582566,85810.0,85809.0,0.48440348]
[1741511052264,0.16576016,85810.0,85809.0,0.45190348]
[1741511053276,0.09582566,85810.0,85809.0,0.45190348]
[1741511053476,0.16576016,85810.0,85809.0,0.33206898]
[1741511053676,0.16576016,85810.0,85809.0,0.01666988]
[1741511053982,0.16576016,85810.0,85809.0,0.00012]
[1741511054369,0.16576016,85810.0,85801.0,0.0701164]
[1741511054572,0.0699402,85803.0,85802.0,0.01655578]
[1741511054768,0.15905998,85803.0,85802.0,0.01655578]
[1741511055579,0.069941,85802.0,85801.0,0.0002148]
[1741511056382,0.069941,85802.0,85801.0,0.0001748]
[1741511056784,0.100741,85802.0,85801.0,0.0001748]
[1741511057373,0.100741,85802.0,85801.0,0.0002548]
[1741511062679,0.461541,85802.0,85801.0,0.0002548]
[1741511067391,0.100741,85802.0,85801.0,0.0002548]
[1741511067686,0.100741,85802.0,85801.0,0.04461705]
[1741511067877,0.100741,85802.0,85801.0,0.01731695]
[1741511068075,0.100741,85802.0,85801.0,0.03197752]
[1741511068284,0.178581,85802.0,85801.0,0.05928127]
[1741511069783,0.178581,85802.0,85801.0,0.05956663]
[1741511069979,0.539381,85802.0,85801.0,0.05956663]
[1741511070179,0.178581,85802.0,85801.0,0.05956663]
[1741511070783,0.539381,85802.0,85801.0,0.05956663]
[1741511071788,0.178581,85802.0,85801.0,0.05956663]
[1741511074789,0.539381,85802.0,85801.0,0.05956663]
[1741511076288,0.539381,85802.0,85801.0,0.05948663]
[1741511076482,0.539381,85802.0,85801.0,0.03200893]
[1741511077390,0.539381,85802.0,85801.0,0.01734836]
[1741511077588,0.539381,85802.0,85800.0,4e-05]
[1741511077589,0.83024,85802.0,85800.0,4e-05]
[1741511077794,0.1012418,85801.0,85800.0,4e-05]
[1741511078196,0.0627,85801.0,85786.0,0.20983951]
[1741511078497,0.7915532,85787.0,85786.0,0.20983951]
[1741511078691,0.8693932,85787.0,85786.0,0.20983951]
[1741511079289,0.9320932,85787.0,85786.0,0.20983951]
[1741511080494,0.9320932,85787.0,85786.0,8e-05]
[1741511085803,0.8542532,85787.0,85786.0,8e-05]
[1741511085992,0.9319732,85787.0,85786.0,8e-05]
[1741511087699,0.5711732,85787.0,85786.0,8e-05]
[1741511088602,0.2104132,85787.0,85786.0,0.070034]
[1741511088899,0.2104132,85787.0,85786.0,0.135134]
[1741511089104,0.2104132,85787.0,85786.0,8e-05]
[1741511089904,0.2104532,85787.0,85786.0,8e-05]
[1741511090199,0.2104532,85787.0,85786.0,0.00012]
[1741511090705,0.2104532,85787.0,85786.0,0.06372]
[1741511090899,0.5712532,85787.0,85786.0,0.06372]
[1741511091301,0.5712532,85787.0,85786.0,0.0638]
[1741511091502,0.5712532,85787.0,85786.0,0.0333]
[1741511092005,0.5712532,85787.0,85786.0,0.0002]
[1741511092204,0.5013,85787.0,85785.0,0.0001748]
[1741511092405,0.101254,85786.0,85785.0,0.0001748]
[1741511092601,0.101254,85786.0,85785.0,0.0002148]
[1741511092906,0.162254,85786.0,85785.0,0.0002148]
[1741511093296,0.162254,85786.0,85785.0,0.0002948]
[1741511096307,0.162254,85786.0,85785.0,0.0001748]
[1741511098204,0.162254,85786.0,85785.0,0.0002548]
[1741511103305,0.162254,85786.0,85785.0,0.0002948]
[1741511103802,0.208474,85786.0,85785.0,0.0002948]
[1741511104311,0.208474,85786.0,85785.0,0.0003348]
[1741511104509,0.38202503,85786.0,85785.0,0.0003348]
[1741511104702,0.38202503,85786.0,85785.0,0.0667348]
[1741511105106,0.38202503,85786.0,85785.0,0.1366896]
[1741511105410,0.38202503,85786.0,85785.0,0.1367696]
[1741511106213,0.32098503,85786.0,85785.0,0.1367696]
[1741511107010,0.24350503,85786.0,85785.0,0.1367696]
[1741511107207,0.147434,85786.0,85785.0,0.1368096]
[1741511107411,0.147434,85786.0,85785.0,0.0668548]
[1741511107814,0.147434,85786.0,85785.0,0.1368096]
[1741511108206,0.147434,85786.0,85785.0,0.1368896]
[1741511108608,0.147514,85786.0,85785.0,0.1368896]
[1741511109216,0.147514,85786.0,85785.0,0.1369696]
[1741511110208,0.147514,85786.0,85785.0,0.1370496]
[1741511111207,0.147514,85786.0,85785.0,0.1370896]
[1741511111911,0.147394,85786.0,85785.0,0.1370896]
[1741511112313,0.147394,85786.0,85785.0,0.1371696]
[1741511113610,0.209594,85786.0,85785.0,0.1371696]
[1741511114618,0.209594,85786.0,85785.0,0.0672148]
[1741511114919,0.209594,85786.0,85785.0,0.1371696]
[1741511115510,0.209594,85786.0,85785.0,0.0672148]
[1741511115814,0.209594,85786.0,85785.0,0.1371696]
[1741511117209,0.177494,85786.0,85785.0,0.1371696]
[1741511118320,0.17389825,85791.0,85790.0,0.0699508]
[1741511118510,0.25153825,85791.0,85790.0,0.0699508]
[1741511118825,0.07764,85791.0,85790.0,0.0699508]
[1741511119014,0.1475899,85791.0,85790.0,0.0699508]
[1741511119320,0.1475899,85791.0,85790.0,0.1334908]
[1741511120226,0.1475899,85791.0,85790.0,0.1334508]
[1741511120618,0.1475899,85791.0,85790.0,0.0635]
[1741511120818,0.1475899,85791.0,85790.0,0.1334508]
[1741511121217,0.1475899,85791.0,85790.0,0.1334908]
[1741511121518,0.0605,85793.0,85790.0,0.1334908]
[1741511121724,0.27835008,85794.0,85793.0,0.0699483]
[1741511122024,0.1475876,85794.0,85793.0,0.0699483]
[1741511122219,0.1475876,85794.0,85793.0,0.1348883]
[1741511123114,0.1024476,85794.0,85793.0,0.1348883]
[1741511123422,0.1024476,85794.0,85793.0,0.1022683]
[1741511123423,0.2116476,85794.0,85793.0,0.1022683]
[1741511123625,0.2116476,85794.0,85793.0,0.03232]
[1741511123921,0.2116476,85794.0,85793.0,0.1022683]
[1741511124223,0.2116476,85794.0,85793.0,0.1021483]
[1741511124610,0.2116476,85794.0,85793.0,0.0322]
[1741511124816,0.0699483,85793.0,85792.0,4e-05]
[1741511125014,0.4307483,85793.0,85792.0,4e-05]
[1741511125220,0.4944483,85793.0,85792.0,0.00012]
[1741511127212,0.069954,85786.0,85785.0,0.0002148]
[1741511127435,0.508434,85786.0,85785.0,0.0002148]
[1741511128119,0.571334,85786.0,85785.0,0.0002148]
[1741511128317,0.571334,85786.0,85785.0,0.0001748]
[1741511129426,0.571334,85786.0,85785.0,0.0002548]
[1741511132118,0.58272449,85786.0,85785.0,0.0002548]
[1741511133928,0.58272449,85786.0,85785.0,0.0001748]
[1741511134526,0.58272449,85786.0,85785.0,0.0002548]
[1741511134918,0.0699581,85781.0,85780.0,4e-05]
[1741511135123,0.1475981,85781.0,85780.0,4e-05]
[1741511135432,0.0699654,85772.0,85771.0,0.0699659]
[1741511135628,0.1476054,85772.0,85771.0,0.0699659]
[1741511136228,0.2117054,85772.0,85771.0,0.0700459]
[1741511140333,0.2117054,85772.0,85771.0,8e-05]
[1741511142233,0.2117054,85772.0,85768.0,0.4307684]
[1741511142446,0.0699671,85770.0,85769.0,0.0638]
[1741511142825,0.1324671,85770.0,85769.0,0.0638]
[1741511143037,0.0699679,85769.0,85768.0,0.4307681]
[1741511143230,0.0699679,85769.0,85768.0,0.0699681]
[1741511143430,0.1324679,85769.0,85768.0,0.0699681]
[1741511145233,0.1324679,85769.0,85766.0,0.0638]
[1741511145430,0.0699695,85767.0,85766.0,0.133769]
[1741511145631,0.1473695,85767.0,85766.0,0.133769]
[1741511146225,0.15877601,85767.0,85766.0,0.133769]
[1741511146636,0.15877601,85767.0,85766.0,0.0638]
[1741511149339,0.15877601,85767.0,85766.0,0.1337703]
[1741511149527,0.15877601,85767.0,85766.0,0.0638]
[1741511149932,0.15877601,85767.0,85766.0,0.1337703]
[1741511150429,0.15877601,85767.0,85755.0,0.21067951]
[1741511150628,0.15877601,85767.0,85756.0,0.032]
[1741511150629,0.0699777,85757.0,85756.0,0.032]
[1741511150834,0.00060001,85762.0,85756.0,0.32888]
[1741511151037,0.0699769,85758.0,85757.0,0.0321]
[1741511151228,0.1474169,85758.0,85757.0,0.0634]
[1741511151728,0.0699785,85756.0,85755.0,0.20987951]
[1741511151928,0.0699785,85756.0,85755.0,4e-05]
[1741511152329,0.1025785,85756.0,85755.0,4e-05]
[1741511152940,0.0699818,85752.0,85751.0,0.27947519]
[1741511153238,0.5084218,85752.0,85751.0,0.27947519]
[1741511153434,0.5084218,85752.0,85751.0,0.34945779]
[1741511153839,0.5398218,85752.0,85751.0,0.34945779]
[1741511154341,0.5398218,85752.0,85751.0,0.34953779]
[1741511155837,0.1790218,85752.0,85751.0,0.34953779]
[1741511156335,0.1790218,85752.0,85751.0,0.0700626]
[1741511157132,0.07764,85752.0,85751.0,0.0700626]
[1741511160140,0.1476218,85752.0,85751.0,0.0700626]
[1741511160333,0.1476218,85752.0,85751.0,0.1024426]
[1741511160535,0.1476218,85752.0,85751.0,0.1339426]
[1741511160736,0.0304,85754.0,85753.0,0.0699809]
[1741511160936,0.10788,85754.0,85753.0,0.0699809]
[1741511161236,0.10788,85754.0,85753.0,0.0700209]
[1741511161835,0.177861,85754.0,85753.0,0.0700209]
[1741511162238,0.177861,85754.0,85753.0,0.0701009]
[1741511162649,0.20528,85760.0,85759.0,0.069976]
[1741511162843,0.28272,85760.0,85759.0,0.069976]
[1741511163248,0.07744,85760.0,85759.0,0.070016]
[1741511163443,0.1474152,85760.0,85759.0,0.133816]
[1741511163952,0.07744,85760.0,85759.0,0.133816]
[1741511164340,0.10974,85760.0,85759.0,0.133896]
[1741511165143,0.1797152,85760.0,85759.0,0.133896]
[1741511165341,0.1022752,85760.0,85759.0,0.133776]
[1741511165550,0.1797552,85760.0,85759.0,0.133776]
[1741511166249,0.1797552,85760.0,85759.0,0.133856]
[1741511166640,0.2120552,85760.0,85759.0,0.133856]
[1741511167452,0.2120552,85760.0,85759.0,0.03098]
[1741511167851,0.2120552,85760.0,85759.0,0.100956]
[1741511168150,0.2120552,85760.0,85759.0,0.070056]
[1741511168552,0.22377711,85760.0,85759.0,0.070056]
[1741511173949,0.22377711,85760.0,85759.0,8e-05]
[1741511174346,0.0699777,85757.0,85756.0,0.0699783]
[1741511174557,0.0699777,85757.0,85756.0,0.0700183]
[1741511175349,0.0699777,85757.0,85756.0,0.0700983]
[1741511176359,0.0699777,85757.0,85756.0,0.0699783]
[1741511177159,0.0699785,85756.0,85755.0,4e-05]
[1741511177463,0.0699785,85756.0,85751.0,0.00016]
[1741511177464,0.0699801,85754.0,85753.0,0.1400403]
[1741511177665,0.1473001,85754.0,85753.0,0.1400403]
[1741511178059,0.2110001,85754.0,85753.0,0.1400403]
[1741511178370,0.2110001,85754.0,85753.0,0.0700598]
[1741511179268,0.2110001,85754.0,85753.0,0.0701398]
[1741511182176,0.34995723,85754.0,85753.0,0.0701398]
[1741511184171,0.34995723,85754.0,85753.0,0.00016]
[1741511185472,0.0349924,85749.0,85745.0,0.0700273]
[1741511185782,0.0699867,85746.0,85745.0,0.0700258]
[1741511186269,0.0699867,85746.0,85745.0,0.0701058]
[1741511188278,0.0699867,85746.0,85745.0,0.00012]
[1741511189870,0.0699867,85746.0,85745.0,0.0701075]
[1741511190971,0.0699867,85746.0,85745.0,0.1001075]
[1741511191979,0.0699867,85746.0,85745.0,0.0701075]
[1741511192880,0.0699867,85746.0,85745.0,0.1001075]
[1741511193270,0.0699867,85746.0,85745.0,0.00012]
[1741511194384,0.0349953,85742.0,85735.0,0.20937146]
[1741511194683,0.0699956,85735.0,85734.0,4e-05]
[1741511194985,0.1473956,85735.0,85734.0,4e-05]
[1741511195180,0.2405956,85735.0,85734.0,0.03292]
[1741511197475,0.2520131,85735.0,85734.0,0.03292]
[1741511199880,0.2520131,85735.0,85734.0,0.00012]
[1741511200178,0.0700022,85727.0,85726.0,0.20937146]
[1741511200481,0.5081222,85727.0,85726.0,0.20937146]
[1741511200682,0.5081222,85727.0,85726.0,0.27937446]
[1741511201083,0.5713222,85727.0,85726.0,0.27937446]
[1741511201276,0.5713222,85727.0,85726.0,0.20937146]
[1741511201480,0.5713222,85727.0,85726.0,0.27937446]
[1741511201889,0.5713222,85727.0,85726.0,0.27945446]
[1741511202088,0.5713222,85727.0,85726.0,0.070083]
[1741511202275,0.5713222,85727.0,85726.0,8e-05]
[1741511202475,0.5713222,85727.0,85726.0,0.070083]
[1741511203287,0.5713222,85727.0,85726.0,0.070003]
[1741511204386,0.5713222,85727.0,85726.0,0.134343]
[1741511205286,0.4308022,85727.0,85726.0,0.134423]
[1741511205494,0.5080822,85727.0,85726.0,0.134423]
[1741511205883,0.5714422,85727.0,85726.0,0.134423]
[1741511206088,0.6017422,85727.0,85726.0,0.134423]
[1741511206292,0.6017422,85727.0,85726.0,0.134463]
[1741511206992,0.6017422,85727.0,85726.0,0.070163]
[1741511207198,0.6017422,85727.0,85724.0,0.0700038]
[1741511207496,0.070003,85726.0,85725.0,4e-05]
[1741511207685,0.133403,85726.0,85725.0,4e-05]
[1741511208296,0.0700071,85721.0,85720.0,0.1023078]
[1741511208489,0.1472471,85721.0,85720.0,0.1343478]
[1741511208689,0.1472471,85721.0,85720.0,0.06434]
[1741511209095,0.2091471,85721.0,85720.0,0.06434]
[1741511209297,0.2091471,85721.0,85720.0,0.06442]
[1741511210599,0.2091471,85721.0,85720.0,0.03242]
[1741511212198,0.2091471,85721.0,85720.0,0.0323]
[1741511212403,0.5699471,85721.0,85720.0,0.0323]
[1741511213202,0.5699471,85721.0,85720.0,0.03238]
[1741511213801,0.5699471,85721.0,85720.0,0.1023879]
[1741511213998,0.5699471,85721.0,85720.0,0.1353879]
[1741511214795,0.1471271,85721.0,85720.0,0.1353879]
[1741511215001,0.1471271,85721.0,85720.0,0.4961879]
[1741511215304,0.1471271,85721.0,85720.0,0.4962279]
[1741511215697,0.07716,85721.0,85720.0,0.4962279]
[1741511215896,0.1471671,85721.0,85720.0,0.4962279]
[1741511216501,0.1471671,85721.0,85720.0,0.4963079]
[1741511217102,0.36140001,85729.0,85728.0,0.0700014]
[1741511217400,0.0700022,85727.0,85726.0,4e-05]
[1741511217998,0.1338022,85727.0,85726.0,4e-05]
[1741511218309,0.1338022,85727.0,85726.0,0.132503]
[1741511219301,0.1338022,85727.0,85726.0,0.132583]
[1741511219506,0.1338022,85727.0,85726.0,0.06258]
[1741511219708,0.1338022,85727.0,85726.0,0.132583]
[1741511220602,0.1338022,85727.0,85726.0,8e-05]
[1741511221213,0.1338022,85727.0,85719.0,0.062]
[1741511221408,0.4308079,85721.0,85720.0,0.0700072]
[1741511221608,0.5080879,85721.0,85720.0,0.1320072]
[1741511222199,0.5711879,85721.0,85720.0,0.1320879]
[1741511223006,0.5711879,85721.0,85720.0,0.06208]
[1741511223208,0.5711879,85721.0,85720.0,0.062]
[1741511224009,0.5711879,85721.0,85720.0,0.0309]
[1741511224200,0.5711879,85721.0,85720.0,0.03098]
[1741511224710,0.5711879,85721.0,85720.0,8e-05]
[1741511228198,0.50118,85721.0,85713.0,0.1005133]
[1741511228408,0.0700112,85716.0,85713.0,0.1005133]
[1741511228718,0.1472512,85716.0,85713.0,0.1005131]
[1741511229011,0.1472512,85716.0,85715.0,0.070052]
[1741511229206,0.1472512,85716.0,85715.0,0.070132]
[1741511229406,0.1796512,85716.0,85715.0,0.00012]
[1741511229603,0.2104512,85716.0,85715.0,0.00012]
[1741511230606,0.2104512,85716.0,85715.0,0.03322]
[1741511231610,0.2104512,85716.0,85715.0,0.03318]
[1741511232305,0.1332112,85716.0,85715.0,8e-05]
[1741511232502,0.2103312,85716.0,85715.0,8e-05]
[1741511235306,0.27910134,85716.0,85711.0,0.0332]
[1741511235512,0.0700152,85711.0,85710.0,4e-05]
[1741511235708,0.1470552,85711.0,85710.0,0.03154]
[1741511235909,0.1470552,85711.0,85710.0,0.1015561]
[1741511236220,0.1470552,85711.0,85710.0,0.1016361]
[1741511238214,0.0622,85713.0,85710.0,0.1016361]
[1741511238509,0.13878134,85716.0,85715.0,0.070012]
[1741511238716,0.21578134,85716.0,85715.0,0.070012]
[1741511239016,0.21578134,85716.0,85715.0,0.430812]
[1741511239017,0.077,85716.0,85715.0,0.430812]
[1741511239210,0.1738131,85719.0,85715.0,0.3608]
[1741511239410,0.1738131,85719.0,85718.0,0.0700095]
[1741511239818,0.2508131,85719.0,85718.0,0.0700095]
[1741511240206,0.2508131,85719.0,85718.0,0.0700495]
[1741511240408,0.1738131,85719.0,85718.0,0.0700495]
[1741511240811,0.1738131,85719.0,85718.0,0.08183492]
[1741511241310,0.1738131,85719.0,85718.0,0.08187492]
[1741511242309,0.1738131,85719.0,85718.0,0.08195492]
[1741511243506,0.07708,85723.0,85722.0,0.0700062]
[1741511244310,0.07708,85723.0,85722.0,0.1016062]
[1741511245004,0.0001749,85724.0,85723.0,0.0700054]
[1741511245211,0.07708,85730.0,85729.0,0.0700005]
[1741511245421,0.07712,85734.0,85733.0,0.0699973]
[1741511246118,0.27838958,85746.0,85738.0,0.0699932]
[1741511246313,0.2509331,85739.0,85738.0,0.0700332]
[1741511246615,0.1738131,85739.0,85738.0,0.4308332]
[1741511246812,0.1738131,85739.0,85738.0,0.0700332]
[1741511247114,0.1738131,85739.0,85738.0,0.1340332]
[1741511247419,0.1738131,85739.0,85738.0,0.1340732]
[1741511247824,0.2438055,85739.0,85738.0,0.1340732]
[1741511248212,0.1738131,85739.0,85738.0,0.1339932]
[1741511248417,0.0699922,85740.0,85739.0,0.0699924]
[1741511248720,0.0699922,85740.0,85739.0,0.1348924]
[1741511248911,0.1342922,85740.0,85739.0,0.1348924]
[1741511249309,0.1342922,85740.0,85739.0,0.1349724]
[1741511249922,0.1738131,85741.0,85740.0,0.0699916]
[1741511250117,0.1738131,85741.0,85740.0,0.1671916]
[1741511250311,0.1738131,85741.0,85740.0,0.1672316]
[1741511250506,0.2438038,85741.0,85740.0,0.1672316]
[1741511250916,0.3054038,85741.0,85740.0,0.1672316]
[1741511251112,0.3054038,85741.0,85740.0,0.1349316]
[1741511251420,0.3054038,85741.0,85740.0,0.1348916]
[1741511252122,0.1738131,85741.0,85740.0,0.1348916]
[1741511252424,0.00017501,85742.0,85741.0,0.0699907]
[1741511252609,0.00017501,85742.0,85741.0,0.1002907]
[1741511252814,0.00017501,85742.0,85741.0,0.1624907]
[1741511253217,0.00017501,85742.0,85741.0,0.1625307]
[1741511253714,0.00017501,85742.0,85741.0,0.4280107]
[1741511254220,0.00017501,85742.0,85741.0,0.4280507]
[1741511255621,0.07016491,85742.0,85741.0,0.4280507]
[1741511255923,0.00017501,85742.0,85741.0,0.4281307]
[1741511256427,0.06197501,85742.0,85741.0,0.4279707]
[1741511256815,0.13196491,85742.0,85741.0,0.3976707]
[1741511257414,0.13196491,85742.0,85741.0,0.26548]
[1741511257817,0.0699907,85741.0,85740.0,4e-05]
[1741511258028,0.1019907,85741.0,85740.0,4e-05]
[1741511258325,0.0699932,85738.0,85737.0,0.3608]
[1741511258629,0.0699932,85738.0,85737.0,0.430794]
[1741511258630,0.1472732,85738.0,85737.0,0.430794]
[1741511259123,0.1472732,85738.0,85737.0,0.3608]
[1741511259322,0.1472732,85738.0,85737.0,0.36088]
[1741511260327,0.1472732,85738.0,85737.0,0.3608]
[1741511261331,0.1472732,85738.0,85737.0,0.36088]
[1741511265123,0.1472732,85738.0,85737.0,0.070074]
[1741511267133,0.1472732,85738.0,85737.0,8e-05]
[1741511270028,0.28572219,85738.0,85737.0,8e-05]
[1741511270430,0.28972219,85738.0,85737.0,8e-05]
[1741511270727,0.21244219,85738.0,85737.0,8e-05]
[1741511270937,0.29000219,85738.0,85737.0,0.070074]
[1741511271341,0.29000219,85738.0,85737.0,8e-05]
[1741511272034,0.28600219,85738.0,85737.0,8e-05]